bitfinex/quotes_SOLUSD_20220114
["timestamp","ask_amount","ask_price","bid_price","bid_amount"]
[1642161848859,15.69080389,143.03,142.96,4.00304582]
[1642161849662,10.07,143.02,142.96,4.00304582]
[1642161849864,10.4949,142.99,142.96,4.00304582]
[1642161850062,10.7449,142.99,142.96,4.00304582]
[1642161850262,25.24754691,142.98,142.96,4.00304582]
[1642161850462,25.75754691,142.98,142.96,4.00304582]
[1642161850663,35.82754691,142.98,142.94,6.35364681]
[1642161850864,2.797,142.97,142.94,6.35364681]
[1642161851062,10.497,142.96,142.94,6.35364681]
[1642161851564,4.68940389,142.95,142.94,6.35364681]
[1642161851764,4.68940389,142.95,142.94,0.34966193]
[1642161851965,4.58532583,142.95,142.94,0.34966193]
[1642161855078,4.33532583,142.95,142.94,0.34966193]
[1642161855270,74.38532583,142.95,142.94,0.34966193]
[1642161856471,84.88222583,142.95,142.94,0.34966193]
[1642161856871,84.88222583,142.95,142.88,6.00398488]
[1642161857075,10.07,142.94,142.88,6.00398488]
[1642161857272,72.598,142.93,142.88,6.00398488]
[1642161857470,58.0,142.91,142.86,8.00705888]
[1642161857673,28.04654691,142.9,142.86,8.00705888]
[1642161858072,28.55654691,142.9,142.86,8.00705888]
[1642161859074,28.55654691,142.9,142.81,9.98067403]
[1642161859272,28.55654691,142.9,142.81,6.0]
[1642161859474,10.5035,142.88,142.79,36.40382871]
[1642161859704,4.07532583,142.87,142.79,36.65382871]
[1642161859905,4.07532583,142.87,142.79,33.85482871]
[1642161860108,4.32532583,142.87,142.8,2.799]
[1642161860307,4.32532583,142.87,142.79,0.25]
[1642161860308,4.58532583,142.87,142.79,0.25]
[1642161860706,4.58532583,142.87,142.78,3.049]
[1642161861307,10.5032,142.86,142.78,3.049]
[1642161861504,11.0132,142.86,142.78,26.579137]
[1642161861905,11.0132,142.86,142.78,40.5933171]
[1642161862307,0.51,142.86,142.78,40.5933171]
[1642161862506,0.25,142.86,142.78,40.5933171]
[1642161862809,4.33532583,142.87,142.78,40.5933171]
[1642161863006,10.5018,142.88,142.8,10.5018]
[1642161863208,10.5018,142.88,142.81,2.799]
[1642161863408,10.07,142.89,142.8,2.799]
[1642161863609,10.07,142.89,142.81,0.25]
[1642161863811,10.07,142.89,142.82,2.799]
[1642161864007,10.07,142.89,142.82,43.3989373]
[1642161864209,20.81036816,142.91,142.82,43.3989373]
[1642161864608,26.81036816,142.91,142.82,43.3989373]
[1642161864911,20.81036816,142.91,142.82,49.3989373]
[1642161865312,21.07036816,142.91,142.82,49.3989373]
[1642161866710,10.07,142.92,142.82,49.3989373]
[1642161866912,10.07,142.94,142.82,119.1989373]
[1642161867110,2.799,142.97,142.83,1.54621402]
[1642161867310,12.869,142.98,142.9,10.494]
[1642161867510,2.799,142.98,142.9,18.524]
[1642161867710,10.07,143.02,142.9,18.524]
[1642161867914,37.10889085,143.02,142.91,24.81535571]
[1642161868109,47.60039085,143.02,142.91,24.81535571]
[1642161868311,47.60039085,143.02,142.91,31.06535571]
[1642161868510,53.85039085,143.02,142.91,31.06535571]
[1642161868710,53.85039085,143.02,142.94,10.4922]
[1642161869010,2.797,143.01,142.91,62.83345571]
[1642161869210,2.797,143.01,142.91,27.86235571]
[1642161869411,10.4927,143.0,142.87,50.9708]
[1642161869611,2.798,142.99,142.87,57.2208]
[1642161869811,12.868,142.99,142.9,10.4949]
[1642161870011,13.378,142.99,142.9,10.7449]
[1642161870210,13.378,142.99,142.87,56.9708]
[1642161870410,72.08398189,142.98,142.87,54.1738]
[1642161870613,2.798,142.97,142.87,54.1738]
[1642161870813,13.2932,142.97,142.88,10.4966]
[1642161871014,13.8032,142.97,142.88,10.4966]
[1642161871211,13.8032,142.97,142.89,15.60234506]
[1642161871212,13.5432,142.97,142.89,15.60234506]
[1642161871412,10.07,142.99,142.89,18.40034506]
[1642161871611,10.07,142.99,142.89,16.11234506]
[1642161871811,10.32,142.99,142.9,2.798]
[1642161872011,10.07,142.99,142.9,0.25]
[1642161872210,16.07,142.99,142.9,0.25]
[1642161872411,31.53834044,142.98,142.91,10.4943]
[1642161872613,31.79834044,142.98,142.91,10.4943]
[1642161872912,41.86834044,142.98,142.89,2.798]
[1642161873114,2.798,142.97,142.87,48.1738]
[1642161873413,34.42224044,142.98,142.88,2.798]
[1642161873712,11.005,142.97,142.89,27.29126017]
[1642161873911,10.495,142.97,142.89,27.29126017]
[1642161874115,10.755,142.97,142.89,27.54126017]
[1642161874315,10.755,142.97,142.89,33.54126017]
[1642161874614,11.005,142.97,142.9,10.495]
[1642161875012,11.005,142.97,142.9,16.745]
[1642161876820,0.25,142.97,142.9,16.745]
[1642161877017,41.85824044,142.98,142.9,16.745]
[1642161878016,42.11824044,142.98,142.9,16.745]
[1642161878219,41.86824044,142.98,142.9,19.543]
[1642161878417,41.86824044,142.98,142.9,23.54769163]
[1642161879017,41.86824044,142.98,142.9,23.29769163]
[1642161879220,41.86824044,142.98,142.9,20.49969163]
[1642161879419,41.86824044,142.98,142.9,10.00469163]
[1642161879917,117.91824044,142.98,142.9,10.00469163]
[1642161880518,117.91824044,142.98,142.9,16.4951]
[1642161883024,48.11824044,142.98,142.91,22.94505571]
[1642161883224,10.07,142.98,142.93,10.4927]
[1642161883422,10.07,143.01,142.93,17.0957]
[1642161883623,10.07,143.01,142.93,17.3457]
[1642161884225,25.43123275,143.0,142.93,17.3457]
[1642161884623,25.69123275,143.0,142.93,17.3457]
[1642161885427,25.69123275,143.0,142.93,10.7427]
[1642161885625,25.68123275,143.0,142.93,10.7427]
[1642161885828,36.17363275,143.0,142.93,10.7427]
[1642161886827,42.17363275,143.0,142.93,10.7427]
[1642161887027,42.43363275,143.0,142.93,10.7427]
[1642161887234,42.43363275,143.0,142.92,2.797]
[1642161887427,45.23063275,143.0,142.92,3.047]
[1642161888028,10.4953,142.96,142.92,2.797]
[1642161888228,10.4953,142.96,142.89,4.00469163]
[1642161888229,3.89163999,142.95,142.89,4.00469163]
[1642161888628,4.40163999,142.95,142.89,4.00469163]
[1642161888827,4.40163999,142.95,142.87,48.1105]
[1642161889432,4.40163999,142.95,142.87,48.3605]
[1642161889830,74.20163999,142.95,142.87,48.3605]
[1642161890429,80.20163999,142.95,142.87,48.3605]
[1642161890630,10.4968,142.94,142.87,58.8578]
[1642161890830,10.4968,142.94,142.87,10.7473]
[1642161891034,11.0068,142.94,142.87,10.7473]
[1642161891631,10.7568,142.94,142.87,10.7473]
[1642161891831,11.0068,142.94,142.87,10.7473]
[1642161893032,11.0068,142.94,142.87,0.25]
[1642161893232,11.0068,142.94,142.86,13.5461]
[1642161894864,11.0068,142.94,142.86,10.7481]
[1642161895965,17.0068,142.94,142.86,10.4981]
[1642161897369,16.7468,142.94,142.86,10.7481]
[1642161897566,10.7468,142.94,142.86,10.7481]
[1642161898967,11.0068,142.94,142.86,10.7481]
[1642161899868,11.0068,142.94,142.86,10.4981]
[1642161900667,0.51,142.94,142.86,10.4981]
[1642161900965,84.69773999,142.95,142.86,10.4981]
[1642161901170,90.27163999,142.95,142.86,10.4981]
[1642161901368,20.47163999,142.95,142.86,34.60266048]
[1642161901769,30.96773999,142.95,142.86,34.60266048]
[1642161902269,24.96773999,142.95,142.86,34.60266048]
[1642161902569,30.96773999,142.95,142.86,34.60266048]
[1642161904072,100.76773999,142.95,142.86,34.60266048]
[1642161907175,100.76773999,142.95,142.86,10.7481]
[1642161907375,100.76773999,142.95,142.86,10.4981]
[1642161907576,100.76773999,142.95,142.85,13.2977]
[1642161907875,10.4974,142.93,142.85,13.2977]
[1642161908076,21.09566553,142.92,142.85,13.2977]
[1642161908474,21.35566553,142.92,142.85,13.2977]
[1642161908874,21.35566553,142.92,142.85,13.5477]
[1642161909075,21.35566553,142.92,142.85,13.2977]
[1642161909275,21.60566553,142.92,142.85,13.2977]
[1642161909479,21.60566553,142.92,142.85,10.4987]
[1642161910778,0.51,142.92,142.85,10.4987]
[1642161910978,3.309,142.94,142.85,10.4987]
[1642161911580,10.498,142.92,142.85,10.4987]
[1642161911978,17.008,142.92,142.85,10.4987]
[1642161912179,16.758,142.92,142.85,10.4987]
[1642161912377,16.758,142.92,142.85,10.7487]
[1642161912579,0.26,142.92,142.85,10.7487]
[1642161912978,10.7572,142.93,142.85,10.7487]
[1642161913179,2.799,142.96,142.85,10.7487]
[1642161913386,2.799,142.96,142.85,11.0087]
[1642161913781,25.35047092,142.98,142.85,17.0087]
[1642161913978,25.35047092,142.98,142.85,39.9749]
[1642161914278,10.4951,142.96,142.85,39.9749]
[1642161915082,10.7451,142.96,142.85,39.9749]
[1642161915281,10.7451,142.96,142.85,39.7149]
[1642161915682,10.4968,142.94,142.85,39.7149]
[1642161915885,0.25,142.96,142.88,10.4961]
[1642161916080,2.799,142.97,142.88,10.7461]
[1642161916081,9.049,142.97,142.88,10.7461]
[1642161916285,3.049,142.97,142.88,10.7461]
[1642161916482,3.309,142.97,142.88,10.7461]
[1642161916682,9.309,142.97,142.88,10.7461]
[1642161916882,27.19253312,142.96,142.88,10.7461]
[1642161917083,27.70253312,142.96,142.88,10.7461]
[1642161917283,80.2961,142.95,142.86,2.799]
[1642161917487,80.8061,142.95,142.86,2.799]
[1642161917683,11.0061,142.95,142.86,2.799]
[1642161918283,11.0061,142.95,142.86,8.799]
[1642161918484,11.0061,142.95,142.86,19.5472]
[1642161919285,11.0061,142.95,142.87,23.54119489]
[1642161919487,11.0061,142.95,142.87,29.79119489]
[1642161919887,17.0061,142.95,142.87,29.79119489]
[1642161920088,17.0061,142.95,142.88,2.00162549]
[1642161920287,17.0061,142.95,142.88,2.25162549]
[1642161920288,16.7561,142.95,142.88,2.25162549]
[1642161920489,16.7561,142.95,142.89,10.4959]
[1642161920691,16.7561,142.95,142.88,2.25162549]
[1642161921000,16.7561,142.95,142.88,5.04962549]
[1642161921688,16.7561,142.95,142.88,15.29632549]
[1642161921889,16.7561,142.95,142.89,2.00162549]
[1642161922290,16.4961,142.95,142.89,9.59262549]
[1642161922492,37.7863,142.98,142.89,9.59262549]
[1642161922493,10.4954,142.96,142.89,9.59262549]
[1642161922694,2.798,142.98,142.89,20.08862549]
[1642161922997,1.93243128,142.99,142.89,37.95731465]
[1642161923395,1.93243128,142.99,142.9,23.98593235]
[1642161923594,1.93243128,142.99,142.94,10.489]
[1642161923794,1.93243128,142.99,142.95,23.54119489]
[1642161924097,1.93243128,143.02,142.94,10.489]
[1642161924295,1.93243128,143.02,142.94,10.739]
[1642161924493,2.18243128,143.02,142.94,10.739]
[1642161924694,8.18243128,143.02,142.94,10.739]
[1642161924898,2.18243128,143.02,142.94,10.739]
[1642161925095,22.45682303,143.01,142.94,10.739]
[1642161925395,35.15949891,143.01,142.93,4.79862549]
[1642161925595,4.49777588,143.0,142.93,2.00162549]
[1642161925997,5.00777588,143.0,142.93,2.00162549]
[1642161926296,10.4961,142.97,142.93,2.00162549]
[1642161926496,9.66404971,142.96,142.93,2.00162549]
[1642161926700,9.66404971,142.96,142.88,2.00162549]
[1642161926897,7.37604971,142.96,142.88,2.00162549]
[1642161927727,7.37604971,142.96,142.87,22.6968]
[1642161927928,7.37604971,142.96,142.87,28.6968]
[1642161928425,13.37604971,142.96,142.87,28.6968]
[1642161928625,10.4977,142.95,142.88,10.4967]
[1642161928830,10.4977,142.95,142.87,28.6968]
[1642161929027,11.0077,142.95,142.87,28.9468]
[1642161929727,11.0077,142.95,142.87,28.6968]
[1642161930827,12.70847588,142.95,142.86,27.2309]
[1642161931028,10.499,142.92,142.86,24.4329]
[1642161931427,11.009,142.92,142.85,12.50032549]
[1642161931629,11.009,142.92,142.85,12.75032549]
[1642161931830,21.22415249,142.91,142.85,10.7487]
[1642161932028,21.73415249,142.91,142.84,4.80062549]
[1642161932229,35.03245249,142.91,142.84,1.92177136]
[1642161932427,36.73322837,142.91,142.84,1.92177136]
[1642161932628,33.93422837,142.91,142.84,1.92177136]
[1642161933028,33.93422837,142.91,142.81,2.799]
[1642161933427,33.93422837,142.91,142.81,3.049]
[1642161933632,32.23345249,142.91,142.81,13.5506]
[1642161934833,32.23345249,142.91,142.81,35.56913725]
[1642161935632,0.51,142.91,142.81,35.56913725]
[1642161935831,10.07,142.93,142.81,35.56913725]
[1642161935832,10.07,142.93,142.81,35.82913725]
[1642161936033,10.07,142.93,142.81,47.27113725]
[1642161936832,16.07,142.93,142.81,47.27113725]
[1642161937233,10.07,142.93,142.81,47.27113725]
[1642161937534,16.58,142.93,142.81,47.27113725]
[1642161937733,10.58,142.93,142.81,47.27113725]
[1642161937934,10.58,142.93,142.81,47.01113725]
[1642161938435,16.58,142.93,142.81,47.01113725]
[1642161938633,21.0778,142.93,142.81,47.01113725]
[1642161938933,27.0778,142.93,142.81,41.56913725]
[1642161939535,17.0078,142.93,142.81,41.56913725]
[1642161939933,17.0078,142.93,142.81,41.82913725]
[1642161940735,17.0078,142.93,142.81,35.82913725]
[1642161941136,17.0078,142.93,142.81,41.82913725]
[1642161941137,16.7478,142.93,142.81,41.82913725]
[1642161941737,16.7478,142.93,142.81,41.56913725]
[1642161941936,10.7478,142.93,142.81,41.82913725]
[1642161943437,11.0078,142.93,142.81,41.56913725]
[1642161943839,17.0078,142.93,142.81,41.82913725]
[1642161944944,10.7578,142.93,142.86,10.4975]
[1642161945143,0.26,142.93,142.86,10.4975]
[1642161945340,10.4968,142.95,142.86,13.5465]
[1642161945541,10.7468,142.95,142.86,10.7475]
[1642161945941,10.4968,142.95,142.87,25.50858999]
[1642161946141,10.4968,142.95,142.88,10.4961]
[1642161946340,2.799,142.96,142.88,17.5671]
[1642161946544,2.798,143.0,142.89,2.798]
[1642161947040,2.798,143.0,142.89,3.308]
[1642161947242,2.798,143.0,142.9,22.01853725]
[1642161947443,2.798,143.0,142.93,25.50858999]
[1642161947641,2.798,143.0,142.93,31.17458999]
[1642161948242,2.798,143.0,142.93,31.43458999]
[1642161948447,2.797,143.05,142.93,31.68458999]
[1642161948844,8.797,143.05,142.94,2.797]
[1642161949043,8.797,143.05,142.94,3.307]
[1642161949445,19.546,143.05,142.95,10.4913]
[1642161949645,19.546,143.05,142.96,22.01853725]
[1642161950049,19.796,143.05,142.96,22.52853725]
[1642161950646,19.546,143.05,142.96,22.52853725]
[1642161951048,9.057,143.05,142.98,10.4891]
[1642161951247,6.26,143.05,142.98,10.4891]
[1642161951446,0.26,143.05,142.98,10.7391]
[1642161951847,16.7482,143.06,142.98,10.7391]
[1642161952047,16.9982,143.06,142.98,10.7391]
[1642161952247,38.21328571,143.06,142.98,10.7391]
[1642161953049,38.21328571,143.06,142.98,10.4891]
[1642161954452,38.21328571,143.06,142.98,10.7391]
[1642161954952,38.21328571,143.06,142.98,10.4891]
[1642161955155,38.21328571,143.06,142.97,2.795]
[1642161955352,38.21328571,143.06,142.97,13.2848]
[1642161955553,108.01328571,143.06,142.97,13.2848]
[1642161955755,38.21328571,143.06,142.97,13.2848]
[1642161955953,37.95328571,143.06,142.97,13.2848]
[1642161956154,37.95328571,143.06,142.97,2.795]
[1642161956353,10.4924,143.0,142.95,23.346]
[1642161956554,10.7424,143.0,142.92,2.797]
[1642161956756,10.4924,143.0,142.92,2.797]
[1642161956954,10.4924,143.0,142.92,3.307]
[1642161957156,10.7524,143.0,142.93,23.07295212]
[1642161957354,11.0024,143.0,142.93,23.07295212]
[1642161957557,10.7524,143.0,142.94,10.492]
[1642161957953,0.26,143.0,142.94,10.492]
[1642161958354,8.61778703,143.02,142.94,10.492]
[1642161959556,10.492,143.01,142.94,10.492]
[1642161959957,11.002,143.01,142.94,10.492]
[1642161960361,0.25,143.01,142.94,10.492]
[1642161960556,3.047,143.03,142.94,10.752]
[1642161960758,0.25,143.03,142.95,2.797]
[1642161960985,0.25,143.03,142.97,10.4898]
[1642161961160,16.07,143.06,142.97,10.4898]
[1642161961161,16.07,143.06,142.97,17.7658]
[1642161961359,16.07,143.06,142.98,22.7963141]
[1642161962565,26.8079,143.06,142.99,10.4882]
[1642161963364,27.0679,143.06,142.99,10.4882]
[1642161964966,27.0679,143.06,142.98,22.7963141]
[1642161965166,27.0679,143.06,142.98,33.2856141]
[1642161965569,27.0679,143.06,142.98,22.7963141]
[1642161966367,2.795,143.05,142.98,22.7963141]
[1642161966568,10.4898,143.04,142.98,22.7963141]
[1642161966969,10.9998,143.04,142.98,22.7963141]
[1642161967367,10.9998,143.04,142.95,2.797]
[1642161967568,10.9998,143.04,142.95,3.047]
[1642161967967,16.9998,143.04,142.95,3.047]
[1642161968270,16.9998,143.04,142.96,31.92291238]
[1642161968496,16.9998,143.04,142.96,32.17291238]
[1642161969796,16.9998,143.04,142.96,0.25]
[1642161970097,16.9998,143.04,142.95,13.5385]
[1642161970801,16.9998,143.04,142.95,13.2885]
[1642161970999,16.9998,143.04,142.95,2.797]
[1642161971196,2.797,143.03,142.95,2.797]
[1642161971399,2.797,143.03,142.91,24.295]
[1642161971400,10.4931,142.99,142.92,2.797]
[1642161971798,11.0031,142.99,142.91,27.093]
[1642161972000,11.0031,142.99,142.91,58.66510991]
[1642161972602,11.0031,142.99,142.91,69.15920991]
[1642161974808,11.0031,142.99,142.91,66.36120991]
[1642161975010,11.0031,142.99,142.91,66.61120991]
[1642161975212,17.0031,142.99,142.91,66.61120991]
[1642161977312,17.0031,142.99,142.91,42.06620991]
[1642161978615,19.8011,142.99,142.91,42.06620991]
[1642161979318,19.8011,142.99,142.91,10.4941]
[1642161979517,19.8011,142.99,142.9,36.4232]
[1642161979759,19.8011,142.99,142.9,36.6732]
[1642161979950,19.8011,142.99,142.9,13.5432]
[1642161980355,89.6011,142.99,142.9,13.2932]
[1642161980557,89.6011,142.99,142.9,10.4952]
[1642161982053,83.6011,142.99,142.9,10.4952]
[1642161982454,13.8011,142.99,142.9,10.4952]
[1642161983954,19.8011,142.99,142.9,10.4952]
[1642161984856,89.6011,142.99,142.9,10.4952]
[1642161987361,89.3511,142.99,142.9,10.4952]
[1642161988862,89.6011,142.99,142.9,10.4952]
[1642161989663,86.8031,142.99,142.9,10.4952]
[1642161990263,86.8031,142.99,142.89,13.294]
[1642161990466,2.798,142.98,142.87,26.3589]
[1642161990665,10.4982,142.93,142.86,6.79197053]
[1642161990864,10.4982,142.93,142.85,6.79297053]
[1642161991065,11.0082,142.93,142.85,3.99397053]
[1642161991267,4.88752007,142.92,142.85,3.99397053]
[1642161991469,5.39752007,142.92,142.85,3.99397053]
[1642161991868,10.5012,142.89,142.85,3.99397053]
[1642161992064,10.5012,142.89,142.83,2.799]
[1642161992065,2.799,142.88,142.81,3.99397053]
[1642161992464,73.109,142.88,142.81,3.99397053]
[1642161992664,24.43535267,142.87,142.81,3.99397053]
[1642161993066,24.94535267,142.87,142.81,3.99397053]
[1642161993669,10.5055,142.85,142.78,95.4]
[1642161994068,11.0155,142.85,142.78,95.4]
[1642161994466,4.88752007,142.84,142.78,95.4]
[1642161994665,7.68652007,142.84,142.78,95.4]
[1642161994865,10.5077,142.81,142.78,95.4]
[1642161995067,24.43535267,142.8,142.78,95.4]
[1642161995569,24.94535267,142.8,142.75,3.99397053]
[1642161996172,10.508,142.79,142.75,3.99397053]
[1642161996468,11.018,142.79,142.75,3.99397053]
[1642161996867,11.018,142.79,142.75,4.01032936]
[1642161997267,80.818,142.79,142.75,4.01032936]
[1642161998074,86.818,142.79,142.74,3.99397053]
[1642161998273,89.619,142.79,142.72,3.99397053]
[1642161999371,10.07,142.78,142.72,3.99397053]
[1642161999570,4.88752007,142.76,142.7,3.99397053]
[1642161999777,10.514,142.74,142.7,3.99397053]
[1642161999969,10.764,142.74,142.7,3.99397053]
[1642162000172,11.024,142.74,142.7,3.99397053]
[1642162000772,22.45038526,142.73,142.7,3.99397053]
[1642162000973,10.5134,142.72,142.7,3.99397053]
[1642162001173,10.5134,142.72,142.68,8.00577847]
[1642162001372,11.0234,142.72,142.68,8.00577847]
[1642162001573,10.7734,142.72,142.68,8.00577847]
[1642162001778,22.45038526,142.73,142.69,2.803]
[1642162002074,10.07,142.76,142.69,12.57930111]
[1642162002075,10.5108,142.76,142.69,12.57930111]
[1642162002271,10.5108,142.76,142.69,11.026]
[1642162002672,10.5108,142.76,142.69,8.223]
[1642162002874,23.85779162,142.75,142.69,8.223]
[1642162003075,23.85779162,142.75,142.67,13.313]
[1642162003273,10.5122,142.74,142.67,13.563]
[1642162003473,10.5122,142.74,142.68,3.99397053]
[1642162003873,10.7722,142.74,142.68,4.24397053]
[1642162004074,0.26,142.74,142.68,14.75477053]
[1642162004473,24.11779162,142.75,142.68,18.76693279]
[1642162004678,24.11779162,142.75,142.69,2.802]
[1642162004874,0.51,142.75,142.69,18.74321844]
[1642162005074,2.802,142.8,142.69,35.73231844]
[1642162005276,12.872,142.81,142.69,37.53802557]
[1642162005475,16.32,142.81,142.69,37.53802557]
[1642162005674,26.8267,142.81,142.69,41.5319961]
[1642162005874,23.36905482,142.8,142.69,45.54415836]
[1642162006074,23.61905482,142.8,142.69,45.28415836]
[1642162006278,23.61905482,142.8,142.69,51.28415836]
[1642162006476,23.61905482,142.8,142.69,45.54415836]
[1642162006675,23.61905482,142.8,142.71,3.99397053]
[1642162006976,36.92835482,142.8,142.72,10.508]
[1642162008476,42.92835482,142.8,142.72,10.508]
[1642162008676,10.07,142.79,142.7,3.99397053]
[1642162008875,2.802,142.78,142.7,3.99397053]
[1642162009077,10.5132,142.74,142.7,3.99397053]
[1642162009475,11.0232,142.74,142.7,3.99397053]
[1642162009682,16.97701792,142.74,142.7,3.99397053]
[1642162010376,16.97701792,142.74,142.69,2.802]
[1642162010977,11.0232,142.74,142.69,2.802]
[1642162011578,11.0232,142.74,142.67,3.99397053]
[1642162011880,11.0232,142.74,142.67,0.25]
[1642162012780,11.0232,142.74,142.68,4.01262962]
[1642162013579,17.0232,142.74,142.68,4.01262962]
[1642162014484,17.0232,142.74,142.67,8.00660015]
[1642162014681,17.0232,142.74,142.67,8.25660015]
[1642162014880,16.7732,142.74,142.67,8.25660015]
[1642162015480,16.7732,142.74,142.68,4.01262962]
[1642162016479,17.0232,142.74,142.68,4.01262962]
[1642162017683,11.0232,142.74,142.68,4.01262962]
[1642162018282,11.0232,142.74,142.67,0.25]
[1642162018578,11.0232,142.74,142.67,10.5117]
[1642162018981,11.0232,142.74,142.67,10.7617]
[1642162019481,0.51,142.74,142.67,10.7617]
[1642162019684,0.51,142.74,142.68,4.01254054]
[1642162019887,11.0209,142.75,142.68,14.52344054]
[1642162020686,10.7609,142.75,142.68,4.01254054]
[1642162021615,16.7609,142.75,142.68,14.52334054]
[1642162021814,10.7609,142.75,142.68,14.52334054]
[1642162022015,17.0209,142.75,142.68,14.52334054]
[1642162022217,17.0209,142.75,142.68,4.01254054]
[1642162023114,17.0209,142.75,142.67,4.24397053]
[1642162023315,89.6229,142.75,142.67,0.25]
[1642162023515,89.6229,142.75,142.66,102.44597053]
[1642162024217,91.32367588,142.75,142.66,102.19597053]
[1642162024417,10.07,142.74,142.66,6.79597053]
[1642162024615,2.803,142.73,142.66,6.79597053]
[1642162024816,10.5166,142.7,142.66,6.79597053]
[1642162025016,2.803,142.69,142.66,6.79597053]
[1642162025221,4.40627757,142.69,142.66,2.802]
[1642162025417,4.91627757,142.69,142.66,2.802]
[1642162025818,10.5167,142.68,142.66,2.802]
[1642162026019,11.0267,142.68,142.64,3.99397053]
[1642162026420,11.0267,142.68,142.63,3.99397053]
[1642162026919,11.0267,142.68,142.63,4.01375835]
[1642162028719,11.0267,142.68,142.6,22.9164]
[1642162029120,11.0267,142.68,142.6,28.9164]
[1642162029420,11.0267,142.68,142.6,22.9164]
[1642162030021,13.8297,142.68,142.6,22.9164]
[1642162030425,83.6297,142.68,142.6,22.9164]
[1642162031328,83.6297,142.68,142.57,28.35817053]
[1642162031527,85.33047588,142.68,142.57,28.35817053]
[1642162031928,91.33047588,142.68,142.57,28.35817053]
[1642162032326,91.33047588,142.68,142.57,24.3642]
[1642162033328,10.07,142.67,142.57,24.3642]
[1642162033527,72.603,142.66,142.57,24.3642]
[1642162033727,10.5205,142.62,142.57,24.3642]
[1642162033928,24.91659517,142.61,142.56,13.3229]
[1642162034328,25.16659517,142.61,142.56,13.3229]
[1642162034527,25.42659517,142.61,142.56,13.3229]
[1642162036234,25.42659517,142.61,142.56,10.5199]
[1642162036931,0.51,142.61,142.56,10.5199]
[1642162037134,0.26,142.61,142.56,10.5199]
[1642162037334,6.0,142.66,142.58,10.518]
[1642162037534,6.0,142.66,142.59,2.803]
[1642162037938,24.97676221,142.65,142.59,2.803]
[1642162038335,35.49496221,142.65,142.59,2.803]
[1642162038534,36.00496221,142.65,142.59,2.803]
[1642162040335,25.48676221,142.65,142.59,13.3207]
[1642162041139,25.48676221,142.65,142.59,2.803]
[1642162041337,31.48676221,142.65,142.59,2.803]
[1642162041939,42.00496221,142.65,142.59,2.803]
[1642162043240,42.00496221,142.65,142.57,10.5188]
[1642162043643,42.00496221,142.65,142.56,2.803]
[1642162043941,44.80796221,142.65,142.56,2.803]
[1642162044348,38.80796221,142.65,142.56,2.803]
[1642162044543,38.80796221,142.65,142.56,13.3229]
[1642162044742,44.80796221,142.65,142.56,13.3229]
[1642162045345,44.80796221,142.65,142.56,13.5729]
[1642162045943,44.80796221,142.65,142.56,10.7699]
[1642162046144,44.80796221,142.65,142.56,0.25]
[1642162046545,44.54796221,142.65,142.55,34.7949]
[1642162046745,38.54796221,142.65,142.55,34.7949]
[1642162046943,35.74496221,142.65,142.56,2.805]
[1642162047142,35.74496221,142.65,142.57,8.00886294]
[1642162047569,35.74496221,142.65,142.57,8.25886294]
[1642162048072,42.00496221,142.65,142.57,8.25886294]
[1642162048870,42.00496221,142.65,142.58,4.01489241]
[1642162050172,44.80796221,142.65,142.58,4.01489241]
[1642162053081,44.80796221,142.65,142.6,2.007504]
[1642162053479,114.60796221,142.65,142.6,2.007504]
[1642162054380,44.80796221,142.65,142.6,2.007504]
[1642162054580,38.54796221,142.65,142.6,2.007504]
[1642162054785,35.74496221,142.65,142.6,2.007504]
[1642162054981,25.22676221,142.65,142.6,2.007504]
[1642162055183,2.803,142.66,142.6,2.007504]
[1642162055381,2.803,142.69,142.6,20.231504]
[1642162055582,1.82139934,142.69,142.6,18.474]